[Event "Czech Championship 2022"]
[Site "Usti nad Labem"]
[Date "2022.05.15"]
[Round "2.5"]
[White "Serrano Salvador, Eduardo"]
[Black "Zwardon, Vojtech"]
[Result "0-1"]
[ECO "A46"]
[WhiteElo "2286"]
[BlackElo "2482"]
[Annotator "TA"]
[PlyCount "64"]
[EventDate "2022.05.12"]
[EventType "swiss"]
[EventCountry "CZE"]
[SourceTitle "playchess.com"]
[Source "ChessBase"]
[SourceQuality "1"]
[TimeControl "40/5400+30:1800+30"]

{[%evp 9,64,-25,-21,-35,-34,-35,-28,-29,0,0,0,-22,11,0,-2,-12,-12,-38,-36,-21,-24,-72,-27,-30,-20,-60,-37,-52,0,0,0,-68,-56,-47,70,-42,-31,-122,-29,-46,-52,-145,-152,-700,-689,-708,-652,-951,-950,-948,-930,-925,-921,-889,-886,-1479,-1159]} 1. d4 {[%emt 0:01:20]} Nf6 {[%emt 0:00:01]} 2. Nf3 {[%emt 0:00:09]} e6 {[%emt 0:00:02]} 3. Bg5 {[%emt 0:00:09]} c5 {[%emt 0:00:05]} 4. d5 {[%emt 0:00:11]} Qa5+ {[%emt 0:07:45]} 5. c3 {[%emt 0:01:04]} Nxd5 {[%emt 0:00:37]} 6. e4 {[%emt 0:00:10] A46: 1 d4 Nf6 2 Nf3 e6: Torre, London and Colle Systems.} Nf6 {[%emt 0:02:47][%cal Bd5f6,Bf6e4,Be4d2][%mdl 32]} 7. e5 {[%emt 0:00:12]} Ne4 {[%emt 0:00:46]} 8. Nbd2 {[%emt 0:00:08] Black has an edge.} Nxd2 {[%emt 0:08:14]} 9. Nxd2 {[%emt 0:00:07]} ({Reject} 9. Kxd2 h6 10. Bf4 b5 $15) 9... Qc7 {[%emt 0:06:38]} 10. Nc4 {[%emt 0:00:08] [#]} Qc6 $146 {[%emt 0:04:43]} ({Predecessor:} 10... Nc6 11. Nd6+ Bxd6 12. exd6 Qa5 13. Qg4 Ne5 14. Qg3 f6 15. Bf4 O-O 16. Bxe5 fxe5 17. Qxe5 Qb6 18. Bc4 Qxb2 19. O-O b6 20. Qe3 Qa3 21. Bb5 a6 22. Bd3 {½-½ (22) Vazquez Igarza,R (2573)-Baklan,V (2600) Benasque 2017}) 11. Qd3 {[%emt 0:11:01]} b5 {[%emt 0:11:29]} 12. Nd6+ {[%emt 0:01:21]} Bxd6 {[%emt 0:00:06]} 13. exd6 {[%emt 0:00:06]} f6 {[%emt 0:00:39]} 14. Be2 {[%emt 0:13:46] And now Bh5+ would win.} Bb7 {[%emt 0:04:46]} (14... fxg5 15. Bh5+ (15. Bf3 Qb6 $16) 15... g6 16. Bf3 $16) 15. Bh5+ {[%emt 0:00:20]} (15. Bf3 $11 Qb6 16. Bh5+ Kf8 17. Qg3) 15... Kd8 {[%emt 0:00:12]} (15... Kf8 $5 {[%cal Rc6g2]} 16. Bf3 Qb6 $17) 16. Bf3 {[%emt 0:05:45]} Qb6 {[%emt 0:00:09]} 17. Bh4 {[%emt 0:06:05]} c4 {[%emt 0:07:31]} 18. Qe2 {[%emt 0:02:30]} g5 {[%emt 0:09:31]} (18... h5 $15 19. Bxb7 Qxb7) 19. Bg3 $11 {[%emt 0:02:36]} h5 {[%emt 0:02:17]} 20. Bxh5 {[%emt 0:01:53]} (20. h3 $11) 20... Bxg2 $15 {[%emt 0:00:26]} 21. Rg1 {[%emt 0:05:14]} Qc6 {[%emt 0:02:32]} ({Better is} 21... Bc6 $15) 22. O-O-O {[%emt 0:12:22]} (22. f4 $14 Be4 23. fxg5 fxg5 24. Bf2) 22... Be4 $36 {[%emt 0:00:19][%mdl 2048] Hoping for ...Kc8. Black has some pressure.} 23. f4 {[%emt 0:00:35] [#]} (23. h4 $15) 23... Bd3 {[%emt 0:01:30]} (23... gxf4 $1 $17 24. Bxf4 Kc8) 24. Rxd3 {[%emt 0:01:37]} cxd3 {[%emt 0:00:08]} 25. Qxd3 {[%emt 0:00:06]} Qc5 $17 {[%emt 0:01:09]} ({Don't do} 25... Rxh5 26. Qg6 Kc8 27. Qxh5 $11) 26. Qg6 $2 {[%emt 0:06:24] Now White is beyond hope.} (26. Rg2 $17 gxf4 27. Qf3) 26... Qxg1+ $19 {[%emt 0:00:12] Black is clearly winning.} 27. Kd2 {[%emt 0:00:04]} Qg2+ {[%emt 0:00:08]} 28. Ke1 {[%emt 0:00:04]} Kc8 {[%emt 0:00:36]} 29. Be2 {[%emt 0:01:37]} gxf4 {[%emt 0:02:34]} 30. Qxf6 {[%emt 0:00:53] [#]} fxg3 $1 {[%emt 0:00:13]} 31. Qxh8+ {[%emt 0:00:10]} Kb7 {[%emt 0:00:03]} 32. Qh5 {[%emt 0:01:52]} Qf2+ {[%emt 0:00:30] Weighted Error Value: White=0.89/Black=0.18 (very precise)} 0-1

[Event "Czech Championship 2022"]
[Site "Usti nad Labem"]
[Date "2022.05.15"]
[Round "2.6"]
[White "Kraus, Tomas"]
[Black "Buchcar, Tomas"]
[Result "1-0"]
[ECO "D11"]
[WhiteElo "2472"]
[BlackElo "2183"]
[Annotator "TA"]
[PlyCount "61"]
[EventDate "2022.05.12"]
[EventType "swiss"]
[EventCountry "CZE"]
[SourceTitle "playchess.com"]
[Source "ChessBase"]
[SourceQuality "1"]
[TimeControl "40/5400+30:1800+30"]

{[%evp 9,61,0,11,0,27,0,6,8,12,15,36,33,43,25,42,39,40,52,57,54,91,48,37,38,44,40,37,0,9,15,70,75,77,43,114,125,156,158,250,246,204,154,205,197,183,173,169,181,266,270,277,271,226,220]} 1. d4 {[%emt 0:00:03]} d5 {[%emt 0:17:38]} 2. Nf3 {[%emt 0:00:52]} Nf6 {[%emt 0:00:17]} 3. c4 {[%emt 0:00:54]} c6 {[%emt 0:00:08]} 4. Nbd2 {[%emt 0:01:42][%cal Bb1d2,Bd2c4,Bc4a5][%mdl 32]} Bf5 {[%emt 0:00:14]} 5. Nh4 {[%emt 0:01:07]} Be6 {[%emt 0:00:14]} 6. e3 {[%emt 0:01:18] D11: Slav Defence: 3 Nf3 sidelines and 3...Nf6 4 e3 Bg4.} g6 {[%emt 0:00:50]} 7. Be2 {[%emt 0:07:14]} dxc4 {[%emt 0:06:38]} 8. Nxc4 {[%emt 0:05:04] [#] The position is equal.} Bg7 $146 {[%emt 0:07:03]} ({Predecessor:} 8... c5 9. O-O Bg7 10. dxc5 Nc6 11. Bd2 O-O 12. Bc3 Ne4 13. Bxg7 Qxd1 14. Rfxd1 Kxg7 {½-½ (24) Heinsohn,M (2368)-Ovaskainen,J (2303) ICCF email 2016}) 9. b4 {[%emt 0:05:49]} Nd5 {[%emt 0:05:59]} 10. Bd2 {[%emt 0:02:05] Inhibits Nc3.} O-O {[%emt 0:16:16]} 11. Rc1 {[%emt 0:01:08]} Nb6 {[%emt 0:00:35]} 12. Na5 $1 {[%emt 0:02:57]} Bc8 {[%emt 0:00:06]} 13. Nf3 {[%emt 0:01:57][%cal Bh4f3,Bf3d4,Bd4b3][%mdl 32] Against e5} N8d7 {[%emt 0:00:10]} 14. O-O {[%emt 0:04:42]} e6 {[%emt 0:07:27]} 15. Qb3 {[%emt 0:02:48]} e5 {[%emt 0:03:17]} 16. dxe5 {[%emt 0:03:26]} (16. b5 {keeps more tension.} cxb5 17. Bb4 e4 18. Nd2) 16... Nxe5 {[%emt 0:00:00]} 17. Nd4 {[%emt 0:01:06]} Qe7 {[%emt 0:02:09]} 18. b5 {[%emt 0:07:26][%cal Rb5c6]} c5 {[%emt 0:09:52]} 19. Qa3 {[%emt 0:01:40]} Ned7 {[%emt 0:00:21]} (19... Re8 $1 $11 20. Ndb3 (20. Qxc5 Qxc5 21. Rxc5 Ned7 $15) (20. Rxc5 Ned7 $11) 20... Qd8) 20. Ndb3 $14 {[%emt 0:05:26][%cal Rb3c5] White is much more active. The black rooks are badly placed.} Rd8 {[%emt 0:00:11]} 21. Rfd1 {[%emt 0:03:05]} Bf8 {[%emt 0:01:00]} ({Better is} 21... Nd5 $1 $14) 22. Bc3 $16 {[%emt 0:03:28]} Qg5 {[%emt 0:00:56][%cal Oc5c4] [#] Threatens to win with ...c4!} 23. Ba1 $1 $36 {[%emt 0:02:32][%mdl 2048] White is in control.} Re8 {[%emt 0:01:46]} (23... Bg7 $16 24. Bxg7 (24. Nxc5 Bxa1 25. Nxd7 Rxd7 $16) 24... Kxg7) 24. Qb2 $18 {[%emt 0:02:11][%csl Ga1][%cal Rb2h8]} f6 {[%emt 0:01:24]} 25. Qc2 {[%emt 0:01:40]} Kg7 {[%emt 0:04:25]} (25... Qf5 $16 26. Qxf5 gxf5) 26. Nd2 {[%emt 0:05:00]} Qh4 {[%emt 0:05:09]} 27. Nf3 {[%emt 0:03:56]} Qe4 {[%emt 0:01:34]} 28. Qb2 {[%emt 0:01:36]} Ne5 {[%emt 0:04:23]} (28... Kh8 $142 29. Qb3 Qe7) 29. Nxe5 {[%emt 0:02:31]} Qxe5 {[%emt 0:00:19]} 30. Qxe5 {[%emt 0:00:43]} fxe5 {[%emt 0:00:05]} 31. f4 {[%emt 0:00:22] Weighted Error Value: White=0.08 (flawless) /Black=0.20 (precise)} 1-0

[Event "Czech Championship 2022"]
[Site "Usti nad Labem"]
[Date "2022.05.15"]
[Round "2.7"]
[White "Smolik, Jachym"]
[Black "Cernousek, Lukas"]
[Result "0-1"]
[ECO "A80"]
[WhiteElo "2272"]
[BlackElo "2440"]
[Annotator "TA"]
[PlyCount "78"]
[EventDate "2022.05.12"]
[EventType "swiss"]
[EventCountry "CZE"]
[SourceTitle "playchess.com"]
[Source "ChessBase"]
[SourceQuality "1"]
[TimeControl "40/5400+30:1800+30"]

{[%evp 9,78,10,25,18,2,0,0,0,0,-7,0,-15,-27,-32,-36,-25,-21,-64,-52,-110,-82,-109,-70,-69,-81,-72,-80,-98,-95,-103,-85,-117,-110,-146,-134,-180,-196,-270,-275,-333,-327,-321,-337,-322,-331,-375,-383,-371,-371,-408,-409,-483,-485,-478,-475,-506,-535,-529,-542,-529,-512,-590,-585,-640,0,-508,0,-597,-537,-506,-477]} 1. d4 {[%emt 0:00:02]} f5 {[%emt 0:00:12]} 2. Nc3 {[%emt 0:00:27]} Nf6 {[%emt 0:00:07]} 3. Bg5 {[%emt 0:00:15]} d5 {[%emt 0:00:09]} 4. e3 {[%emt 0:00:25]} e6 {[%emt 0:00:09]} 5. Nf3 {[%emt 0:00:19]} a6 {[%emt 0:00:08]} 6. Bd3 {[%emt 0:02:30] A80: Dutch Defence: Unusual White second moves.} c5 {[%emt 0:00:07]} 7. dxc5 {[%emt 0:03:02]} Bxc5 {[%emt 0:00:04]} 8. Ne2 {[%emt 0:10:59] The position is equal.} Nc6 {[%emt 0:00:07]} 9. c4 {[%emt 0:07:29]} Bb4+ {[%emt 0:00:07]} 10. Nc3 {[%emt 0:00:20]} dxc4 {[%emt 0:00:02]} 11. Bxc4 {[%emt 0:00:07]} Qxd1+ {[%emt 0:00:08] [#]} 12. Rxd1 $146 {[%emt 0:00:05]} ({Predecessor:} 12. Kxd1 Bxc3 13. bxc3 Ne4 14. Bh4 Nxc3+ 15. Kc2 Ne4 16. Ng5 Nxg5 17. Bxg5 h6 18. Bh4 {0-1 (43) Palozza,C (2265)-Beerdsen,T (2479) Bassano del Grappa 2020}) 12... b5 {[%emt 0:00:59]} 13. Bd3 {[%emt 0:09:57]} Nd5 {[%emt 0:26:26]} 14. Kd2 {[%emt 0:14:16]} (14. O-O $15) 14... h6 {[%emt 0:25:03]} 15. Bf4 {[%emt 0:01:00]} Nxf4 {[%emt 0:02:06]} 16. exf4 {[%emt 0:00:01]} Bb7 {[%emt 0:00:23] Black continues to play with concentration.} 17. Rhe1 {[%emt 0:03:42][%csl LRe6,LRf5] [#]} Kf7 {[%emt 0:01:04]} 18. Kc1 {[%emt 0:02:53][%cal Od3f5]} Rhd8 {[%emt 0:06:15]} 19. Bc2 {[%emt 0:02:20]} Kf6 {[%emt 0:13:57]} 20. Bb3 {[%emt 0:02:18]} Rxd1+ {[%emt 0:00:32]} 21. Kxd1 {[%emt 0:00:40]} Rd8+ {[%emt 0:00:34]} 22. Kc2 {[%emt 0:01:36]} (22. Kc1 $17 Rd6 23. Ne5) 22... Rd6 $19 {[%emt 0:00:03]} 23. g3 {[%emt 0:05:37]} (23. Rd1 $142) 23... Bc5 {[%emt 0:02:27]} 24. Nd2 {[%emt 0:04:44][%cal Oc3e4]} Nd4+ {[%emt 0:04:43]} ({But not} 24... Nb4+ $2 25. Kb1 $19) 25. Kc1 {[%emt 0:00:18]} Nxb3+ {[%emt 0:00:46]} 26. Nxb3 {[%emt 0:00:06]} Bxf2 {[%emt 0:00:18]} 27. Re2 {[%emt 0:00:44]} Bg1 {[%emt 0:02:35]} 28. Nd2 {[%emt 0:01:33]} g5 {[%emt 0:00:53]} 29. fxg5+ {[%emt 0:02:54]} hxg5 {[%emt 0:00:15]} 30. g4 {[%emt 0:00:50]} Rd3 {[%emt 0:07:52]} 31. gxf5 {[%emt 0:00:30]} exf5 {[%emt 0:00:07]} 32. Kc2 {[%emt 0:00:22]} Rh3 {[%emt 0:02:04]} 33. Re8 {[%emt 0:00:23]} Rxh2 {[%emt 0:01:00]} 34. Rf8+ {[%emt 0:00:58]} Kg6 {[%emt 0:01:03] [#] White must now prevent ...Be3.} 35. Kd3 {[%emt 0:00:26] Prevents Be3.} Rh3+ {[%emt 0:00:26]} 36. Ke2 {[%emt 0:00:06]} Rh2+ {[%emt 0:00:28]} 37. Kd3 {[%emt 0:00:06]} Rh3+ {[%emt 0:00:25]} 38. Ke2 $1 {[%emt 0:00:06]} Bc5 {[%emt 0:03:54]} 39. Rg8+ {[%emt 0:00:17]} Kf6 {[%emt 0:00:33] Weighted Error Value: White=0.21 (precise) /Black=0.28 (precise)} 0-1

[Event "Czech Championship 2022"]
[Site "Usti nad Labem"]
[Date "2022.05.15"]
[Round "2.8"]
[White "Delgerdalai, Bayarjavkhlan"]
[Black "Finek, Vaclav"]
[Result "1-0"]
[ECO "D85"]
[WhiteElo "2119"]
[BlackElo "2410"]
[Annotator "TA"]
[PlyCount "67"]
[EventDate "2022.05.12"]
[EventType "swiss"]
[EventCountry "CZE"]
[SourceTitle "playchess.com"]
[Source "ChessBase"]
[SourceQuality "1"]
[TimeControl "40/5400+30:1800+30"]

{[%evp 24,66,12,13,55,50,88,94,97,101,99,20,32,29,40,31,16,6,150,61,290,39,39,25,121,117,75,83,79,78,162,162,941,239,29971,29971,29973,29974,29977,29978,29995,29977,29998,29999,29999]} 1. d4 {[%emt 0:00:04]} Nf6 {[%emt 0:00:07]} 2. c4 {[%emt 0:00:10]} g6 {[%emt 0:00:05]} 3. Nc3 {[%emt 0:00:13]} d5 {[%emt 0:00:05]} 4. cxd5 {[%emt 0:00:10]} Nxd5 {[%emt 0:00:05]} 5. e4 {[%emt 0:00:18]} Nxc3 {[%emt 0:00:05]} 6. bxc3 {[%emt 0:00:11]} Bg7 {[%emt 0:00:05]} 7. Nf3 {[%emt 0:00:26]} c5 {[%emt 0:00:04]} 8. Bb5+ {[%emt 0:00:08]} Bd7 {[%emt 0:03:46]} 9. Bxd7+ {[%emt 0:00:14]} Qxd7 {[%emt 0:00:58]} 10. O-O {[%emt 0:01:24]} O-O {[%emt 0:00:45]} 11. Be3 {[%emt 0:00:49]} cxd4 {[%emt 0:07:46]} 12. cxd4 {[%emt 0:01:45]} Nc6 {[%emt 0:01:18]} 13. d5 {[%emt 0:09:10]} Na5 {[%emt 0:12:40] D85: Exchange Grünfeld: Unusual White 7th moves and lines with 7 Nf3.} 14. Bd4 {[%emt 0:03:37]} Rfd8 {[%emt 0:06:05]} 15. Bxg7 {[%emt 0:12:01]} Kxg7 {[%emt 0:00:05] White is better.} 16. Qd4+ {[%emt 0:00:21] [#]} f6 $146 {[%emt 0:05:06]} ({Predecessor:} 16... Kg8 17. Qd2 Nc4 18. Qh6 Qg4 19. Rab1 b6 20. Rb4 Rac8 21. h3 Qh5 22. Qxh5 gxh5 23. Nd4 Ne5 24. f4 {1-0 (24) Titov,E (2185)-Parvanov,L (2365) ICCF corr 1994}) 17. Rad1 {[%emt 0:05:39]} (17. Qb4 $16 b6 18. Nd4) 17... e5 $1 $11 {[%emt 0:08:42]} 18. dxe6 {[%emt 0:11:09]} (18. Qd3 {with more complications.} Rac8 19. Nd2 Qa4 20. Rc1) 18... Qxe6 {[%emt 0:00:40]} 19. Qxd8 {[%emt 0:20:41]} Rxd8 {[%emt 0:00:16]} 20. Rxd8 {[%emt 0:00:02][%cal Oe4e5] Threatening e5!} Qxa2 {[%emt 0:06:18]} (20... Nc6 $11 21. Rd2 Qxe4) 21. Rfd1 {[%emt 0:02:09]} (21. Rd7+ $16 Kg8 22. Rc1) 21... Kh6 $2 {[%emt 0:10:28] [#]} ({Better is} 21... Nc6 $1 $14 22. R8d7+ Kh6) 22. h4 $2 {[%emt 0:04:38]} (22. e5 $1 $18 {[%cal Re5f6]}) 22... Nc6 $1 $14 {[%emt 0:06:38]} 23. R8d7 {[%emt 0:06:41]} Qa4 {[%emt 0:04:37] [#]} (23... Qc2 $11 {remains equal.}) 24. R1d6 $1 $16 {[%emt 0:03:26] Hoping for Re6. White is more active.} Qa1+ {[%emt 0:09:06]} 25. Kh2 {[%emt 0:02:37] Rd5 is the strong threat.} Ne5 {[%emt 0:01:27]} 26. Nxe5 {[%emt 0:00:58]} ({Don't go for} 26. Rxb7 $2 Nxf3+ 27. gxf3 Qe5+ 28. Kg2 Qxd6 $19) 26... Qxe5+ {[%emt 0:00:07][%mdl 4096] Endgame KQ-KRR} 27. g3 {[%emt 0:01:04]} b5 $2 {[%emt 0:01:45]} (27... Qb2) 28. Ra6 $2 {[%emt 0:02:17]} (28. Rc6 {Black must now prevent Rcc7.} g5 29. hxg5+ (29. Rxa7 gxh4 30. Ra3 b4 $17) 29... Qxg5 30. Rd5) 28... Qxe4 $2 {[%emt 0:03:36]} (28... f5 $18 29. Raxa7 Kh5) 29. Rxf6 {[%emt 0:02:42] White mates.} a5 {[%emt 0:02:27]} 30. Rf4 {[%emt 0:01:48]} Qe8 {[%emt 0:08:42]} 31. Rff7 {[%emt 0:02:27][%csl Gd7][%cal Rf7h7]} g5 {[%emt 0:01:29]} 32. Rf6+ {[%emt 0:00:38]} Kh5 {[%emt 0:00:22]} 33. Rxh7+ {[%emt 0:00:07]} Kg4 {[%emt 0:00:04]} 34. f3# {[%emt 0:00:05] Weighted Error Value: White=0.41/Black=0.69} 1-0

[Event "Czech Championship 2022"]
[Site "Usti nad Labem"]
[Date "2022.05.15"]
[Round "2.9"]
[White "Bouska, Jiri"]
[Black "Rubes, Jan"]
[Result "0-1"]
[ECO "B70"]
[WhiteElo "2117"]
[BlackElo "2386"]
[Annotator "TA"]
[PlyCount "74"]
[EventDate "2022.05.12"]
[EventType "swiss"]
[EventCountry "CZE"]
[SourceTitle "playchess.com"]
[Source "ChessBase"]
[SourceQuality "1"]
[TimeControl "40/5400+30:1800+30"]

{[%evp 18,74,3,6,10,0,0,0,2,0,18,1,9,-5,-2,-10,0,0,0,0,-5,-28,-17,-59,-71,-60,-60,-62,-45,-65,-63,-62,-42,-42,-42,-85,-70,-97,-62,-124,-70,-84,-76,-91,-85,-129,-129,-129,-122,-322,-306,-382,-376,-365,-357,-411,-395,-390,-388]} 1. e4 {[%emt 0:00:04]} c5 {[%emt 0:00:22]} 2. Nf3 {[%emt 0:00:14]} d6 {[%emt 0:00:13]} 3. d4 {[%emt 0:00:11]} cxd4 {[%emt 0:00:06]} 4. Nxd4 {[%emt 0:00:04]} Nf6 {[%emt 0:00:08]} 5. Nc3 {[%emt 0:00:04]} g6 {[%emt 0:00:05]} 6. Be2 {[%emt 0:01:11]} Bg7 {[%emt 0:00:06]} 7. Bg5 {[%emt 0:00:08]} O-O {[%emt 0:00:42]} 8. O-O {[%emt 0:00:14]} Nc6 {[%emt 0:00:31]} 9. Nb3 {[%emt 0:00:29]} a6 {[%emt 0:03:16]} 10. f4 {[%emt 0:00:21]} Re8 {[%emt 0:22:49] B70: Sicilian Dragon: 6 g3 and 6 Be2 (without a later Be3).} 11. Bf3 {[%emt 0:01:16]} Be6 {[%emt 0:01:08]} 12. Nd5 {[%emt 0:02:29]} Bxd5 {[%emt 0:01:41] The position is equal.} 13. exd5 {[%emt 0:00:07]} Na5 {[%emt 0:00:12] [#]} 14. Nxa5 $146 {[%emt 0:01:57]} ({Predecessor:} 14. c3 Nxb3 15. Qxb3 Qc7 16. Kh1 Rac8 17. Rf2 b5 18. Re2 Qc4 19. Rae1 Qxb3 20. axb3 Kf8 21. Ra1 Ra8 22. Rae1 Nd7 23. c4 Nb6 24. Bh4 bxc4 {½-½ (24) Juarez Flores,J (2260)-Figueroa F,M Guatemala City 2000}) 14... Qxa5 {[%emt 0:00:13]} 15. Kh1 {[%emt 0:01:01]} Qb4 {[%emt 0:12:37]} 16. Qc1 {[%emt 0:01:09]} Rac8 {[%emt 0:01:42]} 17. c3 {[%emt 0:00:49]} Qc4 {[%emt 0:00:45]} 18. Qd2 {[%emt 0:02:50]} Rc5 {[%emt 0:10:59]} 19. Rfd1 {[%emt 0:03:30][%cal Bf1d1,Bd1d3,Bd3f3][%mdl 32]} Ne4 {[%emt 0:02:30]} 20. Bxe4 {[%emt 0:05:57]} Qxe4 {[%emt 0:00:04]} 21. Qd3 {[%emt 0:09:23]} Qxd3 {[%emt 0:05:08]} 22. Rxd3 {[%emt 0:00:08]} Rc4 {[%emt 0:00:40]} 23. Rf1 {[%emt 0:03:21]} b5 {[%emt 0:05:46]} 24. f5 {[%emt 0:03:25]} Be5 {[%emt 0:00:36]} 25. fxg6 {[%emt 0:00:52]} hxg6 {[%emt 0:00:49]} 26. Rdf3 {[%emt 0:01:31]} f6 {[%emt 0:01:17]} 27. Bf4 {[%emt 0:01:19]} Re4 {[%emt 0:04:06]} 28. g3 {[%emt 0:03:11]} (28. Kg1 $15) 28... Rc8 {[%emt 0:03:02]} (28... Bxf4 $17 29. gxf4 (29. Rxf4 Re5 $17) 29... Kf7) 29. Re3 {[%emt 0:00:58]} Rcc4 {[%emt 0:04:28][%cal Re5f4]} 30. Rfe1 {[%emt 0:01:02]} Rxe3 {[%emt 0:00:15]} 31. Rxe3 {[%emt 0:00:38]} Bxf4 {[%emt 0:04:08]} 32. gxf4 $17 {[%emt 0:00:24][%mdl 4096] Endgame KR-KR} Kf7 {[%emt 0:00:07]} ({And not} 32... Rxf4 33. Rxe7 Rf2 34. Ra7 $15) 33. Rh3 $2 {[%emt 0:03:39] [#] This move loses the game for White.} (33. Rf3 $17) 33... Rxf4 $19 {[%emt 0:00:44]} 34. Rh7+ {[%emt 0:00:06]} Ke8 {[%emt 0:00:11] Black is winning.} 35. Rh8+ {[%emt 0:00:07]} Kd7 {[%emt 0:00:10]} 36. Kg1 {[%emt 0:07:49]} Rf5 {[%emt 0:00:13]} 37. Rg8 {[%emt 0:00:51]} g5 {[%emt 0:00:11] Weighted Error Value: White=0.24 (precise) /Black=0.07 (flawless)} 0-1